[Event "IV Elllobregat Open Chess Tmnt"]
[Site "Sant Boi de Llobregat, Spain"]
[Date "2023.11.30"]
[Round "1.50"]
[White "Stoyanov, Tsvetan"]
[Black "Ruiz Buendia, Miguel"]
[Result "1-0"]
[TimeControl "90min/40moves + 15min/end + 30sec from move 1"]
[WhiteFideId "2917173"]
[BlackFideId "24537675"]
[WhiteElo "2458"]
[BlackElo "2244"]

1. c4 {[%clk 01:30:52]} {[%emt 00:00:07]} c6 {[%clk 01:30:51]} {[%emt
00:00:09]} 2. Nf3 {[%clk 01:29:29]} {[%emt 00:01:53]} d5 {[%clk 01:29:45]}
{[%emt 00:01:37]} 3. e3 {[%clk 01:29:52]} {[%emt 00:00:07]} Nf6 {[%clk
01:29:48]} {[%emt 00:00:27]} 4. Nc3 {[%clk 01:29:09]} {[%emt 00:01:13]} e6
{[%clk 01:30:04]} {[%emt 00:00:15]} 5. b3 {[%clk 01:29:17]} {[%emt 00:00:22]}
Bd6 {[%clk 01:29:59]} {[%emt 00:00:34]} 6. Bb2 {[%clk 01:29:16]} {[%emt
00:00:31]} O-O {[%clk 01:29:52]} {[%emt 00:00:37]} 7. Be2 {[%clk 01:29:01]}
{[%emt 00:00:45]} e5 {[%clk 01:29:44]} {[%emt 00:00:38]} 8. cxd5 {[%clk
01:25:24]} {[%emt 00:04:07]} cxd5 {[%clk 01:30:08]} {[%emt 00:00:06]} 9. Nb5
{[%clk 01:25:50]} {[%emt 00:00:04]} Nc6 {[%clk 01:30:03]} {[%emt 00:00:35]} 10.
Nxd6 {[%clk 01:15:03]} {[%emt 00:11:16]} Qxd6 {[%clk 01:30:20]} {[%emt
00:00:13]} 11. O-O {[%clk 01:13:27]} {[%emt 00:02:06]} d4 {[%clk 01:12:38]}
{[%emt 00:18:13]} 12. exd4 {[%clk 01:10:18]} {[%emt 00:03:38]} exd4 {[%clk
00:59:44]} {[%emt 00:13:24]} 13. Re1 {[%clk 01:09:46]} {[%emt 00:01:03]} Re8
{[%clk 00:42:40]} {[%emt 00:17:33]} 14. h3 {[%clk 01:06:06]} {[%emt 00:04:10]}
d3 {[%clk 00:35:37]} {[%emt 00:07:34]} 15. Bf1 {[%clk 01:00:03]} {[%emt
00:06:32]} Bf5 {[%clk 00:35:28]} {[%emt 00:00:39]} 16. Rc1 {[%clk 00:51:47]}
{[%emt 00:08:46]} Rad8 {[%clk 00:17:34]} {[%emt 00:18:24]} 17. Rxe8+ {[%clk
00:36:43]} {[%emt 00:15:34]} Rxe8 {[%clk 00:16:52]} {[%emt 00:01:13]} 18. Ne1
{[%clk 00:37:00]} {[%emt 00:00:13]} Rd8 {[%clk 00:07:47]} {[%emt 00:09:35]} 19.
Rc4 {[%clk 00:24:52]} {[%emt 00:12:38]} b5 {[%clk 00:05:54]} {[%emt 00:02:23]}
20. Rc1 {[%clk 00:24:12]} {[%emt 00:01:09]} Be4 {[%clk 00:05:45]} {[%emt
00:00:38]} 21. Nxd3 {[%clk 00:07:04]} {[%emt 00:17:38]} Bxd3 {[%clk 00:01:04]}
{[%emt 00:05:11]} 22. Bxd3 {[%clk 00:07:33]} {[%emt 00:00:01]} Qxd3 {[%clk
00:01:22]} {[%emt 00:00:13]} 23. Rxc6 {[%clk 00:05:39]} {[%emt 00:02:24]} Ne4
{[%clk 00:01:20]} {[%emt 00:00:32]} 24. Qg4 {[%clk 00:02:52]} {[%emt 00:03:16]}
Qb1+ {[%clk 00:01:21]} {[%emt 00:00:28]} 25. Bc1 {[%clk 00:02:54]} {[%emt
00:00:28]} h6 {[%clk 00:00:56]} {[%emt 00:00:56]} 26. Rc8 {[%clk 00:00:44]}
{[%emt 00:02:41]} Rxc8 {[%clk 00:01:10]} {[%emt 00:00:16]} 27. Qxc8+ {[%clk
00:01:13]} Kh7 {[%clk 00:01:33]} {[%emt 00:00:07]} 28. d4 {[%clk 00:00:42]}
{[%emt 00:01:01]} g6 {[%clk 00:01:07]} {[%emt 00:00:56]} 29. Qc7 {[%clk
00:00:42]} {[%emt 00:00:30]} Kg7 {[%clk 00:00:59]} {[%emt 00:00:38]} 30. d5
{[%clk 00:00:50]} {[%emt 00:00:22]} b4 {[%clk 00:00:34]} {[%emt 00:00:55]} 31.
Kh2 {[%clk 00:00:51]} {[%emt 00:00:29]} Nxf2 {[%clk 00:00:32]} {[%emt
00:00:32]} 32. Qe5+ {[%clk 00:01:07]} {[%emt 00:00:14]} Kh7 {[%clk 00:00:33]}
{[%emt 00:00:29]} 33. Bb2 {[%clk 00:00:54]} {[%emt 00:00:43]} f6 {[%clk
00:00:34]} {[%emt 00:00:29]} 34. Qe7+ {[%clk 00:01:22]} {[%emt 00:00:02]} Kg8
{[%clk 00:00:57]} {[%emt 00:00:07]} 35. Qe6+ {[%clk 00:01:46]} {[%emt
00:00:06]} Kg7 {[%clk 00:00:33]} {[%emt 00:00:54]} 36. Qxf6+ {[%clk 00:02:11]}
{[%emt 00:00:04]} Kh7 {[%clk 00:00:31]} {[%emt 00:00:33]} 37. Qg7# {[%clk
00:02:39]} {[%emt 00:00:01]} 1-0

[Event "IV Elllobregat Open Chess Tmnt"]
[Site "Sant Boi de Llobregat, Spain"]
[Date "2023.11.30"]
[Round "1.51"]
[White "Martin Barcelo, Carles"]
[Black "Zwirs, Nico"]
[Result "0-1"]
[TimeControl "90min/40moves + 15min/end + 30sec from move 1"]
[WhiteFideId "24561444"]
[BlackFideId "1036432"]
[WhiteElo "2242"]
[BlackElo "2458"]

1. e4 {[%clk 01:30:53]} {[%emt 00:00:06]} c5 {[%clk 01:30:55]} {[%emt
00:00:05]} 2. Nf3 {[%clk 01:31:04]} {[%emt 00:00:20]} d6 {[%clk 01:31:19]}
{[%emt 00:00:06]} 3. Bb5+ {[%clk 01:30:37]} {[%emt 00:00:57]} Nd7 {[%clk
01:31:39]} {[%emt 00:00:09]} 4. Ba4 {[%clk 01:29:45]} {[%emt 00:01:23]} Ngf6
{[%clk 01:31:18]} {[%emt 00:00:50]} 5. O-O {[%clk 01:29:53]} {[%emt 00:00:22]}
e6 {[%clk 01:30:56]} {[%emt 00:00:51]} 6. d4 {[%clk 01:25:33]} {[%emt
00:04:51]} cxd4 {[%clk 01:23:24]} {[%emt 00:08:03]} 7. Qxd4 {[%clk 01:25:50]}
{[%emt 00:00:12]} Be7 {[%clk 01:22:52]} {[%emt 00:01:00]} 8. c4 {[%clk
01:26:09]} {[%emt 00:00:12]} O-O {[%clk 01:22:21]} {[%emt 00:01:01]} 9. Nc3
{[%clk 01:26:22]} {[%emt 00:00:17]} a6 {[%clk 01:21:29]} {[%emt 00:01:22]} 10.
Rd1 {[%clk 01:25:50]} {[%emt 00:01:02]} Qc7 {[%clk 01:19:22]} {[%emt 00:02:37]}
11. Bxd7 {[%clk 01:22:51]} {[%emt 00:03:29]} Nxd7 {[%clk 00:54:47]} {[%emt
00:25:05]} 12. Bg5 {[%clk 01:23:13]} {[%emt 00:00:08]} f6 {[%clk 00:53:18]}
{[%emt 00:01:59]} 13. Be3 {[%clk 01:23:37]} {[%emt 00:00:07]} Rf7 {[%clk
00:34:05]} {[%emt 00:19:42]} 14. Rac1 {[%clk 01:16:15]} {[%emt 00:07:52]} Bf8
{[%clk 00:34:27]} {[%emt 00:00:08]} 15. Qd2 {[%clk 01:11:50]} {[%emt 00:04:55]}
Rb8 {[%clk 00:24:31]} {[%emt 00:10:27]} 16. b4 {[%clk 00:54:56]} {[%emt
00:17:25]} b6 {[%clk 00:18:04]} {[%emt 00:06:56]} 17. Na4 {[%clk 00:47:05]}
{[%emt 00:08:20]} Bb7 {[%clk 00:17:32]} {[%emt 00:01:02]} 18. Nd4 {[%clk
00:40:17]} {[%emt 00:07:19]} Bxe4 {[%clk 00:13:57]} {[%emt 00:04:06]} 19. Nxe6
{[%clk 00:28:42]} {[%emt 00:12:05]} Qc6 {[%clk 00:12:32]} {[%emt 00:01:54]} 20.
Nc3 {[%clk 00:05:09]} {[%emt 00:24:04]} Bxg2 {[%clk 00:09:18]} {[%emt
00:03:45]} 21. Nd5 {[%clk 00:05:27]} {[%emt 00:00:12]} Bh3 {[%clk 00:06:16]}
{[%emt 00:03:31]} 22. Nd4 {[%clk 00:05:45]} {[%emt 00:00:13]} Qc8 {[%clk
00:06:10]} {[%emt 00:00:36]} 23. f4 {[%clk 00:04:40]} {[%emt 00:01:36]} f5
{[%clk 00:04:15]} {[%emt 00:02:25]} 24. Nf3 {[%clk 00:01:05]} {[%emt 00:04:04]}
h6 {[%clk 00:01:33]} {[%emt 00:03:12]} 25. Bd4 {[%clk 00:01:31]} {[%emt
00:00:04]} Bg4 {[%clk 00:01:29]} {[%emt 00:00:34]} 26. Qg2 {[%clk 00:00:44]}
{[%emt 00:01:17]} Qb7 {[%clk 00:01:42]} {[%emt 00:00:17]} 27. h3 {[%clk
00:00:58]} {[%emt 00:00:16]} Bh5 {[%clk 00:00:58]} {[%emt 00:01:14]} 28. Ba1
{[%clk 00:00:42]} {[%emt 00:00:46]} b5 {[%clk 00:00:51]} {[%emt 00:00:37]} 29.
cxb5 {[%clk 00:00:47]} {[%emt 00:00:25]} Qxb5 {[%clk 00:00:52]} {[%emt
00:00:29]} 30. Rc7 {[%clk 00:00:48]} {[%emt 00:00:29]} Re8 {[%clk 00:00:42]}
{[%emt 00:00:40]} 31. a4 {[%clk 00:00:34]} {[%emt 00:00:44]} Qe2 {[%clk
00:00:41]} {[%emt 00:00:30]} 32. Re1 {[%clk 00:00:32]} {[%emt 00:00:33]} Qxg2+
{[%clk 00:00:55]} {[%emt 00:00:15]} 33. Kxg2 {[%clk 00:00:58]} {[%emt
00:00:04]} Bxf3+ {[%clk 00:01:21]} {[%emt 00:00:05]} 34. Kf2 {[%clk 00:01:02]}
{[%emt 00:00:25]} Rxe1 {[%clk 00:01:43]} {[%emt 00:00:08]} 35. Kxe1 {[%clk
00:01:28]} {[%emt 00:00:04]} Bxd5 {[%clk 00:02:08]} {[%emt 00:00:05]} 36. b5
{[%clk 00:01:44]} {[%emt 00:00:14]} axb5 {[%clk 00:02:18]} {[%emt 00:00:20]} 37.
axb5 {[%clk 00:01:59]} {[%emt 00:00:16]} Nc5 {[%clk 00:02:29]} {[%emt
00:00:18]} 38. Rc8 {[%clk 00:02:11]} {[%emt 00:00:18]} Re7+ {[%clk 00:02:30]}
{[%emt 00:00:29]} 39. Kf1 {[%clk 00:02:30]} {[%emt 00:00:11]} Bc4+ {[%clk
00:02:52]} {[%emt 00:00:08]} 40. Kf2 {[%clk 00:17:48]} {[%emt 00:00:12]} Bxb5
{[%clk 00:17:49]} {[%emt 00:00:33]} 0-1

[Event "IV Elllobregat Open Chess Tmnt"]
[Site "Sant Boi de Llobregat, Spain"]
[Date "2023.11.30"]
[Round "1.52"]
[White "Koelle, Tobias"]
[Black "Saya, Ethan"]
[Result "1-0"]
[TimeControl "90min/40moves + 15min/end + 30sec from move 1"]
[WhiteFideId "16207378"]
[BlackFideId "26095181"]
[WhiteElo "2453"]
[BlackElo "2242"]

1. d4 {[%clk 01:30:50]} {[%emt 00:00:07]} d5 {[%clk 01:30:48]} {[%emt
00:00:13]} 2. Nf3 {[%clk 01:31:13]} {[%emt 00:00:06]} Nf6 {[%clk 01:30:55]}
{[%emt 00:00:24]} 3. Bf4 {[%clk 01:31:31]} {[%emt 00:00:12]} e6 {[%clk
01:28:30]} {[%emt 00:02:56]} 4. Nbd2 {[%clk 01:31:56]} {[%emt 00:00:05]} c5
{[%clk 01:27:35]} {[%emt 00:01:25]} 5. e3 {[%clk 01:32:16]} {[%emt 00:00:09]}
Bd6 {[%clk 01:26:51]} {[%emt 00:01:15]} 6. dxc5 {[%clk 01:31:58]} {[%emt
00:00:49]} Bxf4 {[%clk 01:24:30]} {[%emt 00:02:50]} 7. exf4 {[%clk 01:32:51]}
{[%emt 00:00:06]} Qc7 {[%clk 01:25:21]} {[%emt 00:00:10]} 8. g3 {[%clk
01:32:04]} {[%emt 00:01:16]} Qxc5 {[%clk 01:25:39]} {[%emt 00:00:13]} 9. Bd3
{[%clk 01:32:01]} {[%emt 00:00:33]} O-O {[%clk 01:24:39]} {[%emt 00:01:29]} 10.
O-O {[%clk 01:30:25]} {[%emt 00:02:06]} b6 {[%clk 01:23:32]} {[%emt 00:01:38]}
11. Qe2 {[%clk 01:28:43]} {[%emt 00:02:11]} a5 {[%clk 01:23:41]} {[%emt
00:00:22]} 12. Nb3 {[%clk 01:24:13]} {[%emt 00:05:00]} Qc7 {[%clk 01:23:02]}
{[%emt 00:01:09]} 13. Nbd4 {[%clk 01:19:37]} {[%emt 00:05:05]} Ba6 {[%clk
01:18:17]} {[%emt 00:05:16]} 14. Rac1 {[%clk 01:09:35]} {[%emt 00:10:32]} Rc8
{[%clk 01:16:20]} {[%emt 00:02:27]} 15. Bxa6 {[%clk 00:51:36]} {[%emt
00:18:30]} Nxa6 {[%clk 01:16:04]} {[%emt 00:00:46]} 16. f5 {[%clk 00:51:30]}
{[%emt 00:00:37]} exf5 {[%clk 01:09:27]} {[%emt 00:07:06]} 17. Nxf5 {[%clk
00:51:48]} {[%emt 00:00:11]} Re8 {[%clk 01:09:36]} {[%emt 00:00:22]} 18. Qd2
{[%clk 00:51:29]} {[%emt 00:00:47]} h6 {[%clk 01:06:44]} {[%emt 00:03:26]} 19.
N3d4 {[%clk 00:39:14]} {[%emt 00:12:43]} Ne4 {[%clk 01:04:52]} {[%emt
00:02:23]} 20. Qd1 {[%clk 00:38:36]} {[%emt 00:01:08]} Qe5 {[%clk 01:04:16]}
{[%emt 00:01:06]} 21. c3 {[%clk 00:33:27]} {[%emt 00:05:39]} Nac5 {[%clk
01:02:15]} {[%emt 00:02:31]} 22. Rc2 {[%clk 00:30:47]} {[%emt 00:03:11]} Ne6
{[%clk 00:58:40]} {[%emt 00:04:05]} 23. Re2 {[%clk 00:22:20]} {[%emt 00:08:56]}
Nxd4 {[%clk 00:51:05]} {[%emt 00:08:06]} 24. Nxd4 {[%clk 00:22:44]} {[%emt
00:00:05]} Qd6 {[%clk 00:50:13]} {[%emt 00:01:23]} 25. Rfe1 {[%clk 00:22:32]}
{[%emt 00:00:42]} Nf6 {[%clk 00:48:21]} {[%emt 00:02:22]} 26. Rxe8+ {[%clk
00:19:29]} {[%emt 00:03:34]} Rxe8 {[%clk 00:47:55]} {[%emt 00:00:56]} 27. Rxe8+
{[%clk 00:19:53]} {[%emt 00:00:06]} Nxe8 {[%clk 00:48:23]} {[%emt 00:00:02]} 28.
Nf5 {[%clk 00:20:15]} {[%emt 00:00:07]} Qe6 {[%clk 00:47:06]} {[%emt 00:01:48]}
29. Qxd5 {[%clk 00:20:21]} {[%emt 00:00:25]} Qe1+ {[%clk 00:47:12]} {[%emt
00:00:23]} 30. Kg2 {[%clk 00:20:50]} {[%emt 00:00:01]} Nf6 {[%clk 00:47:00]}
{[%emt 00:00:42]} 31. Qd8+ {[%clk 00:14:07]} {[%emt 00:07:12]} Kh7 {[%clk
00:46:58]} {[%emt 00:00:33]} 32. Qd3 {[%clk 00:14:27]} {[%emt 00:00:10]} Ne4
{[%clk 00:41:58]} {[%emt 00:05:31]} 33. Qd4 {[%clk 00:12:53]} {[%emt 00:02:03]}
f6 {[%clk 00:39:06]} {[%emt 00:03:23]} 34. Qxb6 {[%clk 00:06:51]} {[%emt
00:06:33]} Nd2 {[%clk 00:36:45]} {[%emt 00:02:50]} 35. Ne3 {[%clk 00:07:11]}
{[%emt 00:00:10]} Ne4 {[%clk 00:36:30]} {[%emt 00:00:45]} 36. Nf1 {[%clk
00:06:49]} {[%emt 00:00:51]} Qe2 {[%clk 00:29:10]} {[%emt 00:07:50]} 37. Qe3
{[%clk 00:03:41]} {[%emt 00:03:38]} Qc2 {[%clk 00:29:35]} {[%emt 00:00:06]} 38.
Qf4 {[%clk 00:03:29]} {[%emt 00:00:41]} a4 {[%clk 00:26:13]} {[%emt 00:03:53]}
39. Ne3 {[%clk 00:18:25]} {[%emt 00:00:34]} Qd3 {[%clk 00:41:26]} {[%emt
00:00:17]} 40. Qf5+ {[%clk 00:18:34]} {[%emt 00:00:21]} Kh8 {[%clk 00:40:06]}
{[%emt 00:01:50]} 41. Qd5 {[%clk 00:16:45]} {[%emt 00:02:18]} Qb1 {[%clk
00:38:32]} {[%emt 00:02:05]} 42. Qa8+ {[%clk 00:16:59]} {[%emt 00:00:17]} Kh7
{[%clk 00:38:58]} {[%emt 00:00:05]} 43. Qxa4 {[%clk 00:17:10]} {[%emt
00:00:18]} Nd2 {[%clk 00:38:31]} {[%emt 00:00:56]} 44. Qc2+ {[%clk 00:17:31]}
{[%emt 00:00:09]} 1-0

[Event "IV Elllobregat Open Chess Tmnt"]
[Site "Sant Boi de Llobregat, Spain"]
[Date "2023.11.30"]
[Round "1.53"]
[White "Selbes, Tamer Tarik"]
[Black "Morris, James"]
[Result "1-0"]
[TimeControl "90min/40moves + 15min/end + 30sec from move 1"]
[WhiteFideId "6302513"]
[BlackFideId "3205800"]
[WhiteElo "2238"]
[BlackElo "2453"]

1. e4 {[%clk 01:29:07]} {[%emt 00:01:52]} c5 {[%clk 01:30:53]} {[%emt
00:00:07]} 2. Nf3 {[%clk 01:29:29]} {[%emt 00:00:08]} d6 {[%clk 01:31:14]}
{[%emt 00:00:09]} 3. Bb5+ {[%clk 01:29:40]} {[%emt 00:00:19]} Nd7 {[%clk
01:31:39]} {[%emt 00:00:06]} 4. O-O {[%clk 01:29:58]} {[%emt 00:00:11]} Ngf6
{[%clk 01:31:33]} {[%emt 00:00:37]} 5. Re1 {[%clk 01:30:09]} {[%emt 00:00:18]}
a6 {[%clk 01:30:40]} {[%emt 00:01:24]} 6. Bf1 {[%clk 01:30:23]} {[%emt
00:00:16]} b5 {[%clk 01:27:17]} {[%emt 00:03:54]} 7. a4 {[%clk 01:29:36]}
{[%emt 00:01:17]} Bb7 {[%clk 01:23:46]} {[%emt 00:04:01]} 8. axb5 {[%clk
01:22:05]} {[%emt 00:08:02]} axb5 {[%clk 01:24:11]} {[%emt 00:00:04]} 9. Rxa8
{[%clk 01:22:26]} {[%emt 00:00:09]} Qxa8 {[%clk 01:24:38]} {[%emt 00:00:03]} 10.
Na3 {[%clk 01:22:32]} {[%emt 00:00:24]} b4 {[%clk 01:19:33]} {[%emt 00:05:36]}
11. Nb5 {[%clk 01:19:33]} {[%emt 00:03:29]} Qb8 {[%clk 01:19:56]} {[%emt
00:00:07]} 12. d4 {[%clk 01:19:37]} {[%emt 00:00:26]} e5 {[%clk 01:18:48]}
{[%emt 00:01:38]} 13. d5 {[%clk 00:59:08]} {[%emt 00:20:58]} Be7 {[%clk
01:17:49]} {[%emt 00:01:29]} 14. Nh4 {[%clk 00:58:36]} {[%emt 00:01:02]} g6
{[%clk 01:15:17]} {[%emt 00:03:03]} 15. Bh6 {[%clk 00:56:57]} {[%emt 00:02:08]}
Nxd5 {[%clk 01:08:11]} {[%emt 00:07:37]} 16. Nf3 {[%clk 00:54:34]} {[%emt
00:02:53]} N5f6 {[%clk 00:53:06]} {[%emt 00:15:36]} 17. Ng5 {[%clk 00:54:39]}
{[%emt 00:00:25]} Bc6 {[%clk 00:53:19]} {[%emt 00:00:17]} 18. Qd3 {[%clk
00:47:36]} {[%emt 00:07:32]} Bxb5 {[%clk 00:29:46]} {[%emt 00:24:05]} 19. Qb3
{[%clk 00:46:32]} {[%emt 00:01:34]} d5 {[%clk 00:27:26]} {[%emt 00:02:50]} 20.
exd5 {[%clk 00:46:50]} {[%emt 00:00:12]} Bxf1 {[%clk 00:27:52]} {[%emt
00:00:05]} 21. Rxf1 {[%clk 00:47:00]} {[%emt 00:00:19]} Qd6 {[%clk 00:25:30]}
{[%emt 00:02:53]} 22. Ra1 {[%clk 00:46:04]} {[%emt 00:01:26]} Nb6 {[%clk
00:23:44]} {[%emt 00:02:16]} 23. Bg7 {[%clk 00:44:03]} {[%emt 00:02:30]} Rg8
{[%clk 00:20:37]} {[%emt 00:03:37]} 24. Bxf6 {[%clk 00:44:12]} {[%emt
00:00:21]} Qxf6 {[%clk 00:21:04]} {[%emt 00:00:04]} 25. Ne4 {[%clk 00:44:29]}
{[%emt 00:00:13]} Qf4 {[%clk 00:21:23]} {[%emt 00:00:11]} 26. Qd3 {[%clk
00:42:55]} {[%emt 00:02:03]} c4 {[%clk 00:21:20]} {[%emt 00:00:33]} 27. Qe2
{[%clk 00:42:59]} {[%emt 00:00:26]} Kf8 {[%clk 00:21:06]} {[%emt 00:00:46]} 28.
g3 {[%clk 00:42:32]} {[%emt 00:00:56]} Qf5 {[%clk 00:21:22]} {[%emt 00:00:12]}
29. Ra6 {[%clk 00:40:13]} {[%emt 00:02:50]} Bd8 {[%clk 00:17:17]} {[%emt
00:04:36]} 30. Ra7 {[%clk 00:38:12]} {[%emt 00:02:30]} Nc8 {[%clk 00:14:02]}
{[%emt 00:03:45]} 31. g4 {[%clk 00:37:37]} {[%emt 00:01:05]} Qf4 {[%clk
00:05:47]} {[%emt 00:08:46]} 32. Ra8 {[%clk 00:37:42]} {[%emt 00:00:25]} Kg7
{[%clk 00:06:15]} {[%emt 00:00:03]} 33. Rxc8 {[%clk 00:38:00]} {[%emt
00:00:12]} b3 {[%emt 00:03:50]} 34. c3 {[%clk 00:36:07]} {[%emt 00:02:21]} f5
{[%clk 00:02:45]} {[%emt 00:00:42]} 35. Nc5 {[%clk 00:35:57]} {[%emt 00:00:38]}
Qc1+ {[%clk 00:03:13]} {[%emt 00:00:03]} 36. Kg2 {[%clk 00:36:20]} {[%emt
00:00:06]} Bf6 {[%clk 00:03:14]} {[%emt 00:00:31]} 37. Ne6+ {[%emt 00:01:05]}
Kh8 38. Qxc4 {[%clk 00:35:37]} {[%emt 00:00:37]} Be7 {[%clk 00:03:42]} {[%emt
00:00:32]} 39. Qc7 {[%clk 00:34:00]} {[%emt 00:02:07]} Qd1 {[%clk 00:03:53]}
{[%emt 00:00:19]} 40. Qxe5+ {[%clk 00:49:21]} {[%emt 00:00:09]} 1-0

[Event "IV Elllobregat Open Chess Tmnt"]
[Site "Sant Boi de Llobregat, Spain"]
[Date "2023.11.30"]
[Round "1.54"]
[White "Rozen, Eytan"]
[Black "Pipiras, Filipa Fortuna"]
[Result "1-0"]
[TimeControl "90min/40moves + 15min/end + 30sec from move 1"]
[WhiteFideId "2816750"]
[BlackFideId "1944894"]
[WhiteElo "2451"]
[BlackElo "2237"]

1. e4 {[%clk 01:30:55]} {[%emt 00:00:04]} c5 {[%clk 01:30:27]} {[%emt
00:00:33]} 2. Nf3 {[%clk 01:31:17]} {[%emt 00:00:08]} e6 {[%clk 01:30:34]}
{[%emt 00:00:23]} 3. c3 {[%clk 01:31:44]} {[%emt 00:00:04]} Nf6 {[%clk
01:30:26]} {[%emt 00:00:38]} 4. e5 {[%clk 01:32:07]} {[%emt 00:00:08]} Nd5
{[%clk 01:30:48]} {[%emt 00:00:07]} 5. a3 {[%clk 01:32:35]} {[%emt 00:00:03]}
d6 {[%clk 01:24:15]} {[%emt 00:07:02]} 6. d4 {[%clk 01:32:59]} {[%emt
00:00:06]} cxd4 {[%clk 01:23:58]} {[%emt 00:00:47]} 7. c4 {[%clk 01:33:23]}
{[%emt 00:00:06]} Nc7 {[%clk 01:20:31]} {[%emt 00:03:56]} 8. Qxd4 {[%clk
01:33:30]} {[%emt 00:00:23]} Nc6 {[%clk 01:20:18]} {[%emt 00:00:43]} 9. Qc3
{[%clk 01:33:51]} {[%emt 00:00:10]} dxe5 {[%clk 00:49:57]} {[%emt 00:30:51]} 10.
Nxe5 {[%clk 01:34:16]} {[%emt 00:00:05]} Nd4 {[%clk 00:48:25]} {[%emt
00:02:02]} 11. Nd2 {[%clk 01:34:00]} {[%emt 00:00:47]} Be7 {[%clk 00:43:14]}
{[%emt 00:05:40]} 12. Ndf3 {[%clk 01:32:12]} {[%emt 00:02:17]} Nxf3+ {[%clk
00:40:57]} {[%emt 00:02:47]} 13. Nxf3 {[%clk 01:32:18]} {[%emt 00:00:24]} Bf6
{[%clk 00:34:08]} {[%emt 00:07:19]} 14. Qc2 {[%clk 01:32:17]} {[%emt 00:00:32]}
O-O {[%clk 00:26:59]} {[%emt 00:07:38]} 15. Bd3 {[%clk 01:32:25]} {[%emt
00:00:22]} g6 {[%clk 00:26:30]} {[%emt 00:00:59]} 16. Bh6 {[%clk 01:31:42]}
{[%emt 00:01:12]} Re8 {[%clk 00:26:21]} {[%emt 00:00:39]} 17. O-O-O {[%clk
01:29:52]} {[%emt 00:02:20]} Qe7 {[%clk 00:23:32]} {[%emt 00:03:19]} 18. h4
{[%clk 01:23:48]} {[%emt 00:06:35]} e5 {[%clk 00:21:25]} {[%emt 00:02:36]} 19.
Be4 {[%clk 01:20:47]} {[%emt 00:03:31]} Bg7 {[%clk 00:16:35]} {[%emt 00:05:20]}
20. Bxg7 {[%clk 01:18:11]} {[%emt 00:03:06]} Kxg7 {[%clk 00:16:57]} {[%emt
00:00:08]} 21. h5 {[%clk 01:17:58]} {[%emt 00:00:44]} f5 {[%clk 00:04:37]}
{[%emt 00:12:50]} 22. hxg6 {[%clk 01:17:59]} {[%emt 00:00:29]} hxg6 {[%clk
00:05:00]} {[%emt 00:00:06]} 23. Bd5 {[%clk 01:14:53]} {[%emt 00:03:36]} Nxd5
{[%clk 00:02:33]} {[%emt 00:02:57]} 24. Rxd5 {[%clk 01:15:02]} {[%emt
00:00:21]} Be6 {[%clk 00:02:47]} {[%emt 00:00:16]} 25. Rxe5 {[%clk 01:14:54]}
{[%emt 00:00:38]} Rac8 {[%clk 00:03:09]} {[%emt 00:00:08]} 26. Rxe6 {[%clk
01:14:46]} {[%emt 00:00:38]} Qxe6 {[%clk 00:03:12]} {[%emt 00:00:26]} 27. Qc3+
{[%clk 01:15:09]} {[%emt 00:00:08]} Kf8 {[%clk 00:03:10]} {[%emt 00:00:32]} 28.
Rh8+ {[%clk 01:10:40]} {[%emt 00:04:59]} Ke7 {[%clk 00:03:23]} {[%emt
00:00:16]} 29. Rh7+ {[%clk 01:11:03]} {[%emt 00:00:08]} Kd6 {[%clk 00:03:33]}
{[%emt 00:00:20]} 30. Qd2+ {[%clk 01:10:14]} {[%emt 00:01:19]} Kc5 {[%clk
00:02:39]} {[%emt 00:01:25]} 31. Qb4+ {[%clk 01:10:33]} {[%emt 00:00:11]} 1-0